[Event "28th Hit Open-A 2024"]
[Site "Nova Gorica"]
[Date "2024.01.31"]
[Round "7.20"]
[White "Hrescak, Ivana"]
[Black "Jalovec, Igor"]
[Result "1/2-1/2"]
[ECO "A07"]
[WhiteElo "2117"]
[BlackElo "1703"]
[Annotator "NA RC"]
[PlyCount "110"]
[EventDate "2024.01.22"]
[EventType "swiss"]
[EventCountry "SLO"]
[SourceTitle "playchess.com"]
[Source "ChessBase"]
[SourceQuality "1"]
[TimeControl "5400+30"]

1. Nf3 {[%emt 0:00:55]} Nf6 {[%emt 0:00:36]} 2. g3 {[%emt 0:00:05]} d5 {[%emt 0:01:55]} 3. Bg2 {[%emt 0:00:05]} g6 {[%emt 0:01:35]} 4. d3 {[%emt 0:00:06]} Bg7 {[%emt 0:00:27]} 5. O-O {[%emt 0:00:09]} O-O {[%emt 0:00:29]} 6. Nbd2 {[%emt 0:00:09]} Nbd7 {[%emt 0:02:23]} 7. e4 {[%emt 0:00:56]} Nb6 {[%emt 0:02:50]} 8. e5 {[%emt 0:07:12]} Nfd7 {[%emt 0:01:54]} 9. d4 {[%emt 0:00:05]} c5 {[%emt 0:00:14]} 10. c3 {[%emt 0:00:06]} cxd4 {[%emt 0:02:33]} 11. cxd4 {[%emt 0:00:06]} Nb8 {[%emt 0:01:45]} 12. a3 {[%emt 0:20:16]} Nc6 {[%emt 0:05:21]} 13. b4 {[%emt 0:02:11]} Bf5 {[%emt 0:05:42]} 14. Nb3 {[%emt 0:03:03]} Nc4 {[%emt 0:03:04]} 15. Nh4 {[%emt 0:02:22]} Bc8 {[%emt 0:10:59]} 16. Qf3 {[%emt 0:05:22]} e6 {[%emt 0:00:16]} 17. Qd3 {[%emt 0:05:15]} b6 {[%emt 0:09:16]} 18. b5 {[%emt 0:09:22]} Ne7 {[%emt 0:02:47]} 19. Nd2 {[%emt 0:03:04]} a6 {[%emt 0:05:26]} 20. Nxc4 {[%emt 0:05:27]} dxc4 {[%emt 0:00:19]} 21. Qxc4 {[%emt 0:00:10]} axb5 {[%emt 0:00:13]} 22. Qb3 {[%emt 0:02:08]} Ra7 {[%emt 0:08:52]} 23. Bb2 {[%emt 0:01:06]} g5 {[%emt 0:05:53]} 24. Nf3 {[%emt 0:01:02]} Nd5 {[%emt 0:00:52]} 25. Nd2 {[%emt 0:03:13]} Ba6 {[%emt 0:06:21]} 26. Rfe1 {[%emt 0:01:53]} Qd7 {[%emt 0:02:11]} 27. Qf3 {[%emt 0:05:20]} Bb7 {[%emt 0:03:17]} 28. Qg4 {[%emt 0:02:40]} Qe7 {[%emt 0:02:17]} 29. Ne4 {[%emt 0:04:08]} h6 {[%emt 0:00:08]} 30. Bf1 {[%emt 0:03:18]} b4 {[%emt 0:02:02]} 31. axb4 {[%emt 0:00:04]} Ra6 {[%emt 0:00:10]} 32. Ra3 Rxa3 {[%emt 0:00:31]} 33. Ra1 {[%emt 0:00:49]} Qxb4 34. Bxa3 {[%emt 0:03:44]} Qa4 {[%emt 0:02:11]} 35. Qd1 {[%emt 0:03:45]} Qxd1 {[%emt 0:00:19]} 36. Rxd1 {[%emt 0:00:01]} Ra8 {[%emt 0:01:51]} 37. Bd6 {[%emt 0:01:17]} Ne3 {[%emt 0:00:45]} 38. Nf6+ {[%emt 0:04:26]} Bxf6 {[%emt 0:00:02]} 39. fxe3 {[%emt 0:00:05]} Bd8 {[%emt 0:00:31]} 40. Bc4 {[%emt 0:01:57]} Ba6 {[%emt 0:03:20]} 41. Bxa6 {[%emt 0:01:34]} Rxa6 {[%emt 0:00:01]} 42. Rc1 {[%emt 0:00:06]} Ra8 {[%emt 0:00:11]} 43. g4 {[%emt 0:00:44]} b5 {[%emt 0:01:13]} 44. Rc5 {[%emt 0:01:27]} b4 {[%emt 0:02:04]} 45. Rb5 {[%emt 0:00:05]} Ra1+ {[%emt 0:01:30]} 46. Kg2 {[%emt 0:00:33]} Ra2+ {[%emt 0:00:39]} 47. Kg3 {[%emt 0:00:48]} Ba5 {[%emt 0:00:04]} 48. Bxb4 {[%emt 0:00:53]} Bxb4 {[%emt 0:01:00]} 49. Rxb4 {[%emt 0:00:02]} Re2 {[%emt 0:00:38]} 50. Rb3 {[%emt 0:00:15]} Kg7 {[%emt 0:00:25]} 51. h3 {[%emt 0:01:15]} Kg6 {[%emt 0:00:12]} 52. Ra3 {[%emt 0:00:27]} Kg7 {[%emt 0:00:19]} 53. Kf3 {[%emt 0:00:31]} Rh2 {[%emt 0:00:07]} 54. Kg3 {[%emt 0:00:04]} Re2 {[%emt 0:00:05]} 55. Rc3 {[%emt 0:00:23]} Kg6 {[%emt 0:00:07]} 1/2-1/2

[Event "28th Hit Open-A 2024"]
[Site "Nova Gorica"]
[Date "2024.01.31"]
[Round "7.21"]
[White "Veselic, Maks"]
[Black "Kejzar, Petra"]
[Result "0-1"]
[ECO "B22"]
[WhiteElo "1874"]
[BlackElo "2025"]
[Annotator "NA COMBH"]
[PlyCount "72"]
[EventDate "2024.01.22"]
[EventType "swiss"]
[EventCountry "SLO"]
[SourceTitle "playchess.com"]
[Source "ChessBase"]
[SourceQuality "1"]
[TimeControl "5400+30"]

1. e4 {[%emt 0:00:23]} c5 {[%emt 0:00:05]} 2. Nf3 {[%emt 0:00:09]} e6 {[%emt 0:00:05]} 3. c3 {[%emt 0:00:09]} Nf6 {[%emt 0:00:20]} 4. e5 {[%emt 0:00:07]} Nd5 {[%emt 0:00:02]} 5. d4 {[%emt 0:00:05]} cxd4 {[%emt 0:00:07]} 6. cxd4 {[%emt 0:00:04]} d6 {[%emt 0:00:19]} 7. Nc3 {[%emt 0:01:13]} Nxc3 {[%emt 0:00:35]} 8. bxc3 {[%emt 0:00:03]} Qc7 {[%emt 0:00:39]} 9. Bd2 {[%emt 0:01:06]} Nd7 {[%emt 0:00:32]} 10. exd6 {[%emt 0:00:59]} Bxd6 {[%emt 0:00:15]} 11. Bd3 {[%emt 0:01:15]} O-O {[%emt 0:02:24]} 12. Qc2 {[%emt 0:04:18]} h6 {[%emt 0:00:56]} 13. Qc1 {[%emt 0:02:14]} f5 {[%emt 0:05:37]} 14. O-O {[%emt 0:05:39]} e5 {[%emt 0:02:47]} 15. dxe5 {[%emt 0:02:01]} Nxe5 {[%emt 0:00:13]} 16. Nxe5 {[%emt 0:01:38]} Bxe5 {[%emt 0:00:06]} 17. h3 {[%emt 0:03:19]} Be6 {[%emt 0:05:09]} 18. Re1 {[%emt 0:04:04]} Bd5 {[%emt 0:01:31]} 19. Qc2 {[%emt 0:03:33]} Rf6 {[%emt 0:15:12]} 20. Bf1 {[%emt 0:10:30]} Rc8 {[%emt 0:06:58]} 21. Rad1 {[%emt 0:03:59]} Be4 {[%emt 0:06:36]} 22. Bd3 {[%emt 0:04:16]} Bh2+ {[%emt 0:01:09]} 23. Kf1 {[%emt 0:02:10]} Bxg2+ {[%emt 0:19:13]} 24. Kxg2 {[%emt 0:00:15]} Rg6+ {[%emt 0:00:25]} 25. Kh1 {[%emt 0:00:39]} Qc6+ {[%emt 0:00:29]} 26. Be4 {[%emt 0:00:28]} fxe4 {[%emt 0:00:18]} 27. Qxe4 {[%emt 0:02:53]} Rg1+ {[%emt 0:00:36]} 28. Kxh2 {[%emt 0:00:36]} Qxe4 {[%emt 0:00:14]} 29. Rxg1 {[%emt 0:01:18]} Rd8 {[%emt 0:02:21]} 30. Be3 {[%emt 0:01:26]} Rxd1 {[%emt 0:01:12]} 31. Rxd1 {[%emt 0:00:10]} Qe5+ {[%emt 0:00:41]} 32. Kg1 {[%emt 0:01:01]} Qxc3 {[%emt 0:01:02]} 33. Bxa7 {[%emt 0:00:51]} Qxh3 {[%emt 0:00:23]} 34. Rb1 {[%emt 0:01:20]} Qg4+ {[%emt 0:00:46]} 35. Kf1 {[%emt 0:00:10]} Qa4 {[%emt 0:00:44]} 36. Be3 {[%emt 0:00:38]} Qxa2 {[%emt 0:00:21]} 0-1

[Event "28th Hit Open-A 2024"]
[Site "Nova Gorica"]
[Date "2024.01.31"]
[Round "7.22"]
[White "Zupancic, Urban"]
[Black "Tonel, Giulia"]
[Result "1-0"]
[ECO "C82"]
[WhiteElo "2025"]
[BlackElo "1851"]
[Annotator "NA RC"]
[PlyCount "63"]
[EventDate "2024.01.22"]
[EventType "swiss"]
[EventCountry "SLO"]
[SourceTitle "playchess.com"]
[Source "ChessBase"]
[SourceQuality "1"]
[TimeControl "5400+30"]

1. e4 {[%emt 0:00:24]} e5 {[%emt 0:00:12]} 2. Nf3 {[%emt 0:00:10]} Nc6 {[%emt 0:00:10]} 3. Bb5 {[%emt 0:00:13]} a6 {[%emt 0:00:26]} 4. Ba4 {[%emt 0:00:11]} Nf6 {[%emt 0:00:21]} 5. O-O {[%emt 0:00:32]} Nxe4 {[%emt 0:00:38]} 6. d4 {[%emt 0:01:44]} b5 {[%emt 0:00:43]} 7. Bb3 {[%emt 0:00:57]} d5 {[%emt 0:00:45]} 8. dxe5 {[%emt 0:02:01]} Be6 {[%emt 0:00:37]} 9. c3 {[%emt 0:07:55]} Bc5 {[%emt 0:04:30]} 10. Nbd2 {[%emt 0:05:50]} O-O {[%emt 0:08:00]} 11. Nxe4 {[%emt 0:27:59]} dxe4 {[%emt 0:00:26]} 12. Ng5 {[%emt 0:24:26]} Bxb3 {[%emt 0:20:57]} 13. axb3 {[%emt 0:02:39]} e3 {[%emt 0:10:12]} 14. Bxe3 {[%emt 0:00:54]} Bxe3 {[%emt 0:00:41]} 15. Qxd8 {[%emt 0:00:24]} Rfxd8 {[%emt 0:06:08]} 16. fxe3 {[%emt 0:00:21]} Nxe5 {[%emt 0:00:11]} 17. Rfd1 {[%emt 0:08:18]} Re8 {[%emt 0:06:36]} 18. h3 {[%emt 0:07:53]} f6 {[%emt 0:10:28]} 19. Ne4 {[%emt 0:00:24]} a5 {[%emt 0:02:33]} 20. Nc5 {[%emt 0:00:59]} Kf7 {[%emt 0:01:52]} 21. Kf2 {[%emt 0:00:54]} Re7 {[%emt 0:07:15]} 22. Rd4 {[%emt 0:01:20]} g5 {[%emt 0:06:00]} 23. Rad1 {[%emt 0:01:49]} h5 {[%emt 0:05:44]} 24. Rd8 {[%emt 0:01:00]} Rxd8 {[%emt 0:00:51]} 25. Rxd8 {[%emt 0:00:07]} a4 {[%emt 0:00:34]} 26. bxa4 {[%emt 0:00:53]} Nc4 {[%emt 0:00:11]} 27. b3 {[%emt 0:02:15]} Nxe3 {[%emt 0:01:13]} 28. a5 {[%emt 0:00:46]} Nf5 {[%emt 0:01:03]} 29. a6 {[%emt 0:00:02]} Kg6 {[%emt 0:01:38]} 30. a7 {[%emt 0:00:41]} h4 {[%emt 0:00:10]} 31. a8=Q {[%emt 0:00:23]} Ng3 {[%emt 0:00:13]} 32. Re8 {[%emt 0:01:29]} 1-0

[Event "28th Hit Open-A 2024"]
[Site "Nova Gorica"]
[Date "2024.01.31"]
[Round "7.23"]
[White "Dorokhina, Elizaveta"]
[Black "Gergolet, Jan"]
[Result "1-0"]
[ECO "D11"]
[WhiteElo "1994"]
[BlackElo "1632"]
[Annotator "NA RC"]
[PlyCount "93"]
[EventDate "2024.01.22"]
[EventType "swiss"]
[EventCountry "SLO"]
[SourceTitle "playchess.com"]
[Source "ChessBase"]
[SourceQuality "1"]
[TimeControl "5400+30"]

1. d4 {[%emt 0:14:14]} d5 {[%emt 0:00:13]} 2. c4 {[%emt 0:00:27]} c6 {[%emt 0:00:47]} 3. e3 {[%emt 0:01:09]} Nf6 {[%emt 0:00:21]} 4. Nf3 {[%emt 0:00:06]} Bg4 {[%emt 0:00:15]} 5. Bd3 {[%emt 0:00:55]} dxc4 {[%emt 0:00:28]} 6. Bxc4 {[%emt 0:00:08]} e6 {[%emt 0:00:11]} 7. O-O {[%emt 0:02:02]} Be7 {[%emt 0:01:04]} 8. Nbd2 {[%emt 0:02:30]} Nbd7 {[%emt 0:01:18]} 9. Re1 {[%emt 0:06:42]} O-O {[%emt 0:00:25]} 10. h3 {[%emt 0:01:27]} Bh5 {[%emt 0:00:16]} 11. b3 {[%emt 0:04:32]} e5 {[%emt 0:11:49]} 12. g4 {[%emt 0:01:36]} e4 {[%emt 0:00:35]} 13. Ne5 {[%emt 0:01:50]} Bg6 {[%emt 0:00:56]} 14. Nxg6 {[%emt 0:00:46]} hxg6 {[%emt 0:00:03]} 15. Qc2 {[%emt 0:00:43]} Qa5 {[%emt 0:05:31]} 16. Rd1 {[%emt 0:01:38]} Rad8 {[%emt 0:08:04]} 17. Nxe4 {[%emt 0:01:08]} Nd5 {[%emt 0:08:41]} 18. Bd2 {[%emt 0:00:51]} Qa3 {[%emt 0:02:30]} 19. Qc1 {[%emt 0:06:40]} Qxc1 {[%emt 0:03:37]} 20. Bxc1 {[%emt 0:01:02]} N7f6 {[%emt 0:00:27]} 21. Nxf6+ {[%emt 0:00:23]} gxf6 {[%emt 0:00:13]} 22. Bb2 {[%emt 0:00:22]} Nc7 {[%emt 0:08:59]} 23. Rac1 {[%emt 0:01:00]} Ne6 {[%emt 0:01:06]} 24. d5 {[%emt 0:00:53]} Ng5 {[%emt 0:00:44]} 25. dxc6 {[%emt 0:05:44]} bxc6 {[%emt 0:00:48]} 26. Kg2 {[%emt 0:00:07]} Rxd1 {[%emt 0:03:16]} 27. Rxd1 {[%emt 0:00:12]} Rd8 {[%emt 0:00:11]} 28. Rxd8+ {[%emt 0:00:20]} Bxd8 {[%emt 0:00:01]} 29. Bd4 {[%emt 0:00:16]} a5 {[%emt 0:00:36]} 30. f3 {[%emt 0:01:47]} Ne6 {[%emt 0:00:45]} 31. Bxe6 {[%emt 0:00:52]} fxe6 {[%emt 0:00:01]} 32. Bc5 {[%emt 0:00:12]} Bc7 {[%emt 0:01:28]} 33. f4 {[%emt 0:00:07]} Kf7 {[%emt 0:01:52]} 34. Kf3 {[%emt 0:00:56]} f5 {[%emt 0:05:33]} 35. e4 {[%emt 0:00:54]} g5 {[%emt 0:04:31]} 36. fxg5 {[%emt 0:02:23]} fxe4+ {[%emt 0:03:06]} 37. Kxe4 {[%emt 0:00:05]} Kg6 {[%emt 0:00:06]} 38. Be3 {[%emt 0:00:25]} Bg3 {[%emt 0:00:55]} 39. Bf4 {[%emt 0:00:25]} Be1 {[%emt 0:02:13]} 40. Ke5 {[%emt 0:00:11]} c5 {[%emt 0:00:17]} 41. Kxe6 {[%emt 0:00:12]} a4 {[%emt 0:00:05]} 42. Kd5 {[%emt 0:00:55]} axb3 {[%emt 0:00:18]} 43. axb3 {[%emt 0:00:04]} Bf2 {[%emt 0:00:08]} 44. Bd6 {[%emt 0:01:06]} Kxg5 {[%emt 0:00:15]} 45. Bxc5 {[%emt 0:00:06]} Bg3 {[%emt 0:00:07]} 46. Be7+ {[%emt 0:00:06]} Kg6 {[%emt 0:00:22]} 47. b4 {[%emt 0:00:13]} 1-0

[Event "28th Hit Open-A 2024"]
[Site "Nova Gorica"]
[Date "2024.01.31"]
[Round "7.24"]
[White "Trybus, Dominika"]
[Black "Pirs, Matjaz"]
[Result "0-1"]
[ECO "B13"]
[WhiteElo "1530"]
[BlackElo "1965"]
[Annotator "NA RC"]
[PlyCount "209"]
[EventDate "2024.01.22"]
[EventType "swiss"]
[EventCountry "SLO"]
[SourceTitle "playchess.com"]
[Source "ChessBase"]
[SourceQuality "1"]
[TimeControl "5400+30"]

1. e4 {[%emt 0:00:05]} c6 {[%emt 0:00:26]} 2. d4 {[%emt 0:00:18]} d5 {[%emt 0:00:07]} 3. exd5 {[%emt 0:01:00]} cxd5 {[%emt 0:00:15]} 4. Bd3 {[%emt 0:00:16]} Nc6 {[%emt 0:00:37]} 5. c3 {[%emt 0:00:30]} Nf6 {[%emt 0:00:45]} 6. Bf4 {[%emt 0:02:04]} Bg4 {[%emt 0:01:50]} 7. Qb3 {[%emt 0:02:03]} Qc8 {[%emt 0:00:13]} 8. Na3 {[%emt 0:01:36]} a6 {[%emt 0:02:17]} 9. f3 {[%emt 0:02:30]} Bd7 {[%emt 0:10:48]} 10. Ne2 {[%emt 0:07:55]} e6 {[%emt 0:03:15]} 11. O-O {[%emt 0:02:45]} Be7 {[%emt 0:00:47]} 12. Nc2 {[%emt 0:08:00]} Nh5 {[%emt 0:12:07]} 13. Ne1 {[%emt 0:04:24]} Nxf4 {[%emt 0:03:01]} 14. Nxf4 {[%emt 0:00:06]} Qc7 {[%emt 0:00:24]} 15. Ne2 {[%emt 0:01:46]} Bd6 {[%emt 0:00:48]} 16. f4 {[%emt 0:03:14]} g6 {[%emt 0:00:13]} 17. Qd1 {[%emt 0:03:27]} O-O {[%emt 0:00:50]} 18. Qd2 {[%emt 0:00:24]} Kg7 {[%emt 0:00:25]} 19. Nf3 {[%emt 0:02:09]} f6 {[%emt 0:00:53]} 20. Bc2 {[%emt 0:05:11]} Rac8 {[%emt 0:09:24]} 21. Rad1 {[%emt 0:06:34]} Na5 {[%emt 0:01:41]} 22. b3 {[%emt 0:04:17]} Bb5 {[%emt 0:08:12]} 23. Ne1 {[%emt 0:07:21]} Bxe2 {[%emt 0:06:26]} 24. Qxe2 {[%emt 0:00:15]} Rfe8 {[%emt 0:00:21]} 25. b4 {[%emt 0:02:16]} Nc4 {[%emt 0:02:11]} 26. Qf3 {[%emt 0:08:59]} Na3 {[%emt 0:03:39]} 27. Rd3 {[%emt 0:00:23]} Re7 {[%emt 0:06:59]} 28. Qe3 {[%emt 0:02:27]} Bxb4 {[%emt 0:01:42]} 29. cxb4 {[%emt 0:02:20]} Nxc2 {[%emt 0:00:07]} 30. Nxc2 {[%emt 0:00:10]} Qxc2 {[%emt 0:00:04]} 31. a3 {[%emt 0:01:02]} Kf7 {[%emt 0:05:44]} 32. Qh3 {[%emt 0:01:30]} Kg7 {[%emt 0:00:35]} 33. Qe3 {[%emt 0:01:59]} Rcc7 {[%emt 0:00:36]} 34. Re1 {[%emt 0:01:37]} Qb2 {[%emt 0:04:18]} 35. Rb3 {[%emt 0:01:10]} Qc2 {[%emt 0:02:20]} 36. Rd3 {[%emt 0:01:20]} Kf7 {[%emt 0:02:43]} 37. Qh3 {[%emt 0:00:37]} Ke8 {[%emt 0:01:53]} 38. Rde3 {[%emt 0:01:29]} Qd2 {[%emt 0:03:36]} 39. Rxe6 {[%emt 0:00:16]} Qxe1+ {[%emt 0:00:24]} 40. Rxe1 {[%emt 0:00:15]} Rxe1+ {[%emt 0:00:03]} 41. Kf2 {[%emt 0:00:07]} Re4 {[%emt 0:00:24]} 42. g3 {[%emt 0:04:16]} Rc2+ {[%emt 0:00:07]} 43. Kf3 {[%emt 0:01:24]} Rc3+ {[%emt 0:00:13]} 44. Kf2 {[%emt 0:00:12]} Rc7 {[%emt 0:01:05]} 45. Qh4 {[%emt 0:01:02]} Rf7 {[%emt 0:00:28]} 46. Qg4 {[%emt 0:00:59]} f5 {[%emt 0:02:04]} 47. Qd1 {[%emt 0:00:13]} Kf8 {[%emt 0:01:05]} 48. h4 {[%emt 0:01:33]} Rc7 {[%emt 0:00:25]} 49. h5 {[%emt 0:01:39]} Kg7 {[%emt 0:00:07]} 50. hxg6 {[%emt 0:00:10]} hxg6 {[%emt 0:00:01]} 51. Qb3 {[%emt 0:01:35]} Rc4 {[%emt 0:01:34]} 52. Qa4 {[%emt 0:00:38]} Re7 {[%emt 0:01:08]} 53. Qa5 {[%emt 0:01:35]} Rd7 {[%emt 0:00:28]} 54. b5 {[%emt 0:01:02]} axb5 {[%emt 0:00:39]} 55. Qxb5 {[%emt 0:00:07]} Rcc7 {[%emt 0:00:22]} 56. Qb3 {[%emt 0:00:38]} Kf7 {[%emt 0:00:35]} 57. a4 {[%emt 0:00:34]} Rc4 {[%emt 0:00:59]} 58. Qb5 {[%emt 0:00:36]} Ke7 {[%emt 0:00:18]} 59. Qb6 {[%emt 0:00:35]} Rc6 {[%emt 0:00:09]} 60. Qb4+ {[%emt 0:00:38]} Kd8 {[%emt 0:00:07]} 61. Qa5+ {[%emt 0:00:37]} Kc8 {[%emt 0:00:25]} 62. Qa8+ {[%emt 0:00:38]} Kc7 {[%emt 0:00:05]} 63. Qa5+ {[%emt 0:00:15]} Kb8 {[%emt 0:00:05]} 64. Qb5 {[%emt 0:00:40]} Rdd6 {[%emt 0:01:12]} 65. Qb4 {[%emt 0:01:55]} Re6 {[%emt 0:00:52]} 66. Qa5 {[%emt 0:00:53]} Red6 {[%emt 0:02:22]} 67. Qb4 {[%emt 0:00:17]} Kc7 {[%emt 0:00:10]} 68. Qa5+ {[%emt 0:00:20]} Kd7 {[%emt 0:00:09]} 69. Qb5 {[%emt 0:00:35]} b6 {[%emt 0:00:12]} 70. Qa6 {[%emt 0:00:54]} Rc7 {[%emt 0:00:24]} 71. Qb5+ {[%emt 0:00:15]} Ke7 {[%emt 0:00:10]} 72. a5 {[%emt 0:01:18]} bxa5 {[%emt 0:00:11]} 73. Qxa5 {[%emt 0:00:05]} Rc4 {[%emt 0:00:42]} 74. Qa7+ {[%emt 0:00:30]} Rd7 {[%emt 0:01:10]} 75. Qb6 {[%emt 0:00:29]} Kf7 {[%emt 0:00:57]} 76. Qb5 {[%emt 0:01:04]} Ke6 {[%emt 0:00:44]} 77. Qb6+ {[%emt 0:00:21]} Rd6 {[%emt 0:00:13]} 78. Qb2 {[%emt 0:00:29]} Kf6 {[%emt 0:00:53]} 79. Qb8 {[%emt 0:00:12]} Ke7 {[%emt 0:01:50]} 80. Qb7+ {[%emt 0:00:32]} Rd7 {[%emt 0:00:40]} 81. Qb6 {[%emt 0:00:15]} Kf7 {[%emt 0:01:10]} 82. Qb5 {[%emt 0:00:21]} Rcc7 {[%emt 0:00:35]} 83. Qb8 {[%emt 0:00:42]} Kg7 {[%emt 0:00:22]} 84. Qb5 {[%emt 0:00:28]} Kh7 {[%emt 0:00:20]} 85. Kg2 {[%emt 0:01:02]} Rb7 {[%emt 0:00:30]} 86. Qd3 {[%emt 0:01:24]} Re7 {[%emt 0:00:10]} 87. Kf2 {[%emt 0:00:36]} Rb2+ {[%emt 0:00:09]} 88. Kf1 {[%emt 0:00:29]} Ra7 {[%emt 0:00:18]} 89. Qd1 {[%emt 0:00:42]} Raa2 {[%emt 0:00:07]} 90. Qe1 {[%emt 0:00:23]} Rb7 {[%emt 0:00:30]} 91. Kg1 {[%emt 0:00:28]} Kh6 {[%emt 0:00:40]} 92. Kf1 {[%emt 0:00:45]} Rbb2 {[%emt 0:00:50]} 93. g4 {[%emt 0:00:18]} Rf2+ {[%emt 0:00:26]} 94. Kg1 {[%emt 0:00:40]} Rg2+ {[%emt 0:00:35]} 95. Kf1 {[%emt 0:00:16]} Rxg4 {[%emt 0:01:39]} 96. Qe5 {[%emt 0:00:20]} Ra8 {[%emt 0:00:34]} 97. Qxd5 {[%emt 0:00:28]} Rxf4+ {[%emt 0:00:12]} 98. Ke2 {[%emt 0:00:27]} Re8+ {[%emt 0:00:44]} 99. Kd2 {[%emt 0:00:22]} Ree4 {[%emt 0:00:10]} 100. Qg8 {[%emt 0:00:21]} Rxd4+ {[%emt 0:00:05]} 101. Ke2 {[%emt 0:00:20]} Rde4+ {[%emt 0:00:19]} 102. Kd2 {[%emt 0:00:18]} Kg5 {[%emt 0:00:18]} 103. Qd8+ {[%emt 0:00:13]} Kg4 {[%emt 0:00:06]} 104. Qf6 {[%emt 0:00:25]} Rd4+ {[%emt 0:00:13]} 105. Ke2 {[%emt 0:00:29]} 0-1

[Event "28th Hit Open-A 2024"]
[Site "Nova Gorica"]
[Date "2024.01.31"]
[Round "7.25"]
[White "Budai, Leonardo"]
[Black "Kukushkin, Ivan"]
[Result "1-0"]
[ECO "B12"]
[WhiteElo "1847"]
[BlackElo "1890"]
[Annotator "NA RC"]
[PlyCount "116"]
[EventDate "2024.01.22"]
[EventType "swiss"]
[EventCountry "SLO"]
[SourceTitle "playchess.com"]
[Source "ChessBase"]
[SourceQuality "1"]
[TimeControl "5400+30"]

1. e4 {[%emt 0:06:19]} c6 {[%emt 0:07:47]} 2. d4 {[%emt 0:00:09]} d5 {[%emt 0:00:10]} 3. e5 {[%emt 0:00:11]} c5 {[%emt 0:00:05]} 4. dxc5 {[%emt 0:00:07]} e6 {[%emt 0:00:03]} 5. Be3 {[%emt 0:02:30]} Nd7 {[%emt 0:01:21]} 6. Bb5 {[%emt 0:00:32]} Ne7 {[%emt 0:00:42]} 7. Bd4 {[%emt 0:07:19]} Nc6 {[%emt 0:08:36]} 8. Bxc6 {[%emt 0:03:04]} bxc6 {[%emt 0:00:29]} 9. b4 {[%emt 0:18:42]} a5 {[%emt 0:08:07]} 10. c3 {[%emt 0:00:47]} axb4 {[%emt 0:00:20]} 11. cxb4 {[%emt 0:00:14]} Ba6 {[%emt 0:00:11]} 12. Ne2 {[%emt 0:13:47]} Qb8 {[%emt 0:02:12]} 13. a3 {[%emt 0:09:17]} Nxe5 {[%emt 0:01:45]} 14. O-O {[%emt 0:05:45]} Nd7 {[%emt 0:06:21]} 15. f4 {[%emt 0:00:34]} Nf6 {[%emt 0:03:13]} 16. Nbc3 {[%emt 0:02:09]} Be7 {[%emt 0:04:39]} 17. Rf3 {[%emt 0:03:12]} Rg8 {[%emt 0:09:48]} 18. Be5 {[%emt 0:08:24]} Qb7 {[%emt 0:02:52]} 19. Nd4 {[%emt 0:02:34]} g6 {[%emt 0:04:15]} 20. Nb3 {[%emt 0:02:56]} Nd7 {[%emt 0:06:52]} 21. Na5 {[%emt 0:00:41]} Qc8 {[%emt 0:01:44]} 22. Qe1 {[%emt 0:02:27]} Bd8 {[%emt 0:01:41]} 23. Nb3 {[%emt 0:00:31]} Be7 {[%emt 0:03:42]} 24. Re3 {[%emt 0:01:49]} Bc4 {[%emt 0:04:18]} 25. Nd4 {[%emt 0:00:26]} h5 {[%emt 0:05:31]} 26. Nb1 {[%emt 0:05:37]} Nxe5 {[%emt 0:01:22]} 27. fxe5 {[%emt 0:00:03]} Bg5 {[%emt 0:00:08]} 28. Rf3 {[%emt 0:00:34]} Qc7 {[%emt 0:00:41]} 29. Nc3 {[%emt 0:00:58]} Bh6 {[%emt 0:01:08]} 30. Qg3 {[%emt 0:01:47]} Bd2 {[%emt 0:01:46]} 31. Rd1 {[%emt 0:01:26]} Bxc3 {[%emt 0:02:06]} 32. Rxc3 {[%emt 0:00:01]} Rc8 {[%emt 0:01:42]} 33. h4 {[%emt 0:00:09]} Qe7 {[%emt 0:00:12]} 34. Rf3 {[%emt 0:00:27]} Rg7 {[%emt 0:01:12]} 35. Rf6 {[%emt 0:00:07]} Rc7 {[%emt 0:00:53]} 36. Rd2 {[%emt 0:00:05]} Qd8 {[%emt 0:00:27]} 37. Rdf2 {[%emt 0:00:15]} Bb5 {[%emt 0:01:56]} 38. Qg5 {[%emt 0:00:25]} Qe7 {[%emt 0:00:28]} 39. Qh6 {[%emt 0:00:33]} Rg8 {[%emt 0:05:39]} 40. Qh7 {[%emt 0:00:06]} Rf8 {[%emt 0:00:14]} 41. Nxe6 {[%emt 0:01:52]} d4 {[%emt 0:00:44]} 42. Nxc7+ {[%emt 0:00:37]} Qxc7 {[%emt 0:00:07]} 43. Rd6 {[%emt 0:00:24]} Qe7 {[%emt 0:00:40]} 44. Qg7 {[%emt 0:00:46]} Bc4 {[%emt 0:01:07]} 45. Rxd4 {[%emt 0:00:16]} Bd5 {[%emt 0:00:03]} 46. Qf6 {[%emt 0:00:20]} Qa7 {[%emt 0:00:09]} 47. e6 {[%emt 0:00:21]} Qxa3 {[%emt 0:00:16]} 48. exf7+ {[%emt 0:00:44]} Kd7 {[%emt 0:01:11]} 49. Qd6+ {[%emt 0:00:07]} Kc8 {[%emt 0:00:01]} 50. Qxf8+ {[%emt 0:00:10]} Kb7 {[%emt 0:00:02]} 51. Qe7+ {[%emt 0:00:55]} Ka6 {[%emt 0:00:22]} 52. b5+ {[%emt 0:00:23]} Kxb5 {[%emt 0:00:47]} 53. Qb7+ {[%emt 0:00:11]} Kxc5 {[%emt 0:00:03]} 54. f8=Q+ {[%emt 0:00:15]} Kxd4 {[%emt 0:00:09]} 55. Qxa3 {[%emt 0:00:23]} Bxg2 {[%emt 0:00:07]} 56. Qd7+ {[%emt 0:00:35]} Bd5 {[%emt 0:00:06]} 57. Rd2+ {[%emt 0:00:18]} Kc4 {[%emt 0:00:34]} 58. Qdd6 {[%emt 0:00:26]} Bh1 {[%emt 0:05:24]} 1-0

[Event "28th Hit Open-A 2024"]
[Site "Nova Gorica"]
[Date "2024.01.31"]
[Round "7.26"]
[White "Ongut, Tamas Gunes"]
[Black "Pagano, Sergio"]
[Result "1-0"]
[ECO "D32"]
[WhiteElo "2310"]
[BlackElo "1821"]
[Annotator "RC"]
[PlyCount "61"]
[EventDate "2024.01.22"]
[EventType "swiss"]
[EventCountry "SLO"]
[SourceTitle "playchess.com"]
[Source "ChessBase"]
[SourceQuality "1"]
[TimeControl "5400+30"]

1. d4 {[%emt 0:00:04]} d5 {[%emt 0:00:11]} 2. c4 {[%emt 0:00:09]} e6 {[%emt 0:00:09]} 3. Nc3 {[%emt 0:00:07]} c5 {[%emt 0:00:08]} 4. cxd5 {[%emt 0:00:10]} exd5 {[%emt 0:00:08]} 5. Nf3 {[%emt 0:00:07]} Nc6 {[%emt 0:00:20]} 6. dxc5 {[%emt 0:00:15]} d4 {[%emt 0:00:23]} 7. Ne4 {[%emt 0:00:16]} Bxc5 {[%emt 0:01:33]} 8. Nxc5 {[%emt 0:00:06]} Qa5+ {[%emt 0:00:07]} 9. Bd2 {[%emt 0:00:06]} Qxc5 {[%emt 0:00:05]} 10. b4 {[%emt 0:00:08]} Qb6 {[%emt 0:05:35]} 11. a4 {[%emt 0:00:11]} a6 {[%emt 0:03:11]} 12. a5 {[%emt 0:02:52]} Qd8 {[%emt 0:00:31]} 13. g3 {[%emt 0:02:11]} Be6 {[%emt 0:03:59]} 14. Bg2 {[%emt 0:00:09]} Nge7 {[%emt 0:01:10]} 15. O-O {[%emt 0:00:09]} O-O {[%emt 0:01:23]} 16. Ng5 {[%emt 0:01:18]} Bf5 {[%emt 0:07:59]} 17. e4 {[%emt 0:01:04]} Bg6 {[%emt 0:02:30]} 18. f4 {[%emt 0:00:42]} h6 {[%emt 0:04:23]} 19. Nh3 {[%emt 0:00:06]} f6 {[%emt 0:05:02]} 20. Nf2 {[%emt 0:01:13]} Bf7 {[%emt 0:03:45]} 21. Rc1 {[%emt 0:00:07]} b5 {[%emt 0:05:24]} 22. Re1 {[%emt 0:05:08]} Bc4 {[%emt 0:02:17]} 23. Bf1 {[%emt 0:01:02]} d3 {[%emt 0:01:58]} 24. Bc3 {[%emt 0:01:43]} Nd4 {[%emt 0:08:46]} 25. Nxd3 {[%emt 0:05:19]} Bb3 {[%emt 0:01:03]} 26. Qg4 {[%emt 0:01:09]} Nc2 {[%emt 0:00:23]} 27. Nc5 {[%emt 0:01:21]} Nxe1 {[%emt 0:01:33]} 28. Nxb3 {[%emt 0:00:09]} Qc8 {[%emt 0:04:45]} 29. Qe2 {[%emt 0:04:23]} Qc4 {[%emt 0:01:29]} 30. Qxc4+ {[%emt 0:00:13]} bxc4 {[%emt 0:00:06]} 31. Bxc4+ {[%emt 0:00:07]} 1-0